bitfinex/quotes_SOLUSD_20220226
["timestamp","ask_amount","ask_price","bid_price","bid_amount"]
[1645916568739,15.89,90.49,90.393,4.421]
[1645916568943,110.0,90.488,90.393,4.421]
[1645916569139,110.0,90.469,90.308,23.61368513]
[1645916569340,16.6106,90.43,90.308,0.55344684]
[1645916569540,110.0,90.429,90.308,0.55344684]
[1645916569743,186.42643802,90.429,90.308,0.05344684]
[1645916569938,110.0,90.419,90.269,47.76094684]
[1645916570338,214.54,90.42,90.28,16.6132]
[1645916570339,110.0,90.399,90.28,16.6132]
[1645916570541,110.0,90.406,90.28,16.6132]
[1645916570739,15.89,90.4,90.28,16.6132]
[1645916570938,15.89,90.4,90.281,25.91644392]
[1645916571338,15.89,90.4,90.282,49.68234392]
[1645916571542,32.5003,90.4,90.29,16.6117]
[1645916571945,15.89,90.4,90.29,16.6117]
[1645916572143,15.89,90.4,90.291,24.06177725]
[1645916572345,0.16640936,90.427,90.291,24.06177725]
[1645916572543,32.495,90.43,90.32,16.6062]
[1645916572743,32.495,90.43,90.321,24.1669]
[1645916573543,15.89,90.43,90.33,16.6039]
[1645916573949,15.89,90.43,90.331,2.74678921]
[1645916574148,32.4924,90.45,90.331,2.74678921]
[1645916574550,47.7043,90.458,90.331,2.74678921]
[1645916574750,0.16640936,90.456,90.35,16.601]
[1645916575052,0.16640936,90.456,90.351,24.175]
[1645916575852,0.16640936,90.456,90.36,16.5987]
[1645916577669,0.16640936,90.456,90.361,110.0]
[1645916577868,4.424,90.496,90.38,16.5959]
[1645916578070,23.8164,90.499,90.381,23.8296]
[1645916579168,28.2394,90.499,90.381,23.8296]
[1645916579369,23.8164,90.499,90.381,23.8296]
[1645916579569,23.8164,90.499,90.4,16.5921]
[1645916580175,24.23076821,90.498,90.4,16.5921]
[1645916581372,110.0,90.497,90.4,16.5921]
[1645916581574,110.0,90.489,90.381,23.8296]
[1645916581773,110.0,90.479,90.362,73.7776]
[1645916581972,110.0,90.477,90.362,73.7776]
[1645916582173,4.423,90.476,90.362,73.7776]
[1645916582374,114.423,90.477,90.362,73.7776]
[1645916582574,110.0,90.459,90.362,73.7776]
[1645916582775,15.89,90.45,90.362,73.7776]
[1645916583373,15.89,90.45,90.347,22.9194]
[1645916583774,32.4924,90.45,90.35,16.6023]
[1645916584974,15.89,90.45,90.35,16.6023]
[1645916586176,110.0,90.449,90.35,16.6023]
[1645916586577,134.23076821,90.449,90.35,16.6023]
[1645916587176,15.89,90.45,90.35,16.6023]
[1645916588277,15.89,90.45,90.35,19.34908921]
[1645916588978,15.89,90.45,90.35,16.6023]
[1645916589179,32.492,90.45,90.347,22.9194]
[1645916589378,24.23076821,90.449,90.347,22.9194]
[1645916590584,24.23076821,90.449,90.35,16.6024]
[1645916591883,32.492,90.45,90.35,16.6024]
[1645916593285,15.89,90.45,90.35,16.6024]
[1645916593485,15.89,90.45,90.351,2.74678921]
[1645916593685,15.89,90.45,90.37,16.5988]
[1645916594086,15.89,90.45,90.371,22.9563]
[1645916600597,1.65799258,90.449,90.35,4.424]
[1645916600793,4.424,90.448,90.35,4.424]
[1645916600993,110.0,90.447,90.316,23.1632]
[1645916601193,110.0,90.447,90.233,5.81]
[1645916601194,198.65,90.44,90.305,4.425]
[1645916601393,110.0,90.445,90.21,11.56832229]
[1645916601394,198.65,90.41,90.21,11.56832229]
[1645916601698,16.6236,90.36,90.24,16.6214]
[1645916601896,15.89,90.35,90.2,55.4165]
[1645916602094,111.70427874,90.349,90.201,7.0483264]
[1645916602292,1.70547492,90.348,90.201,7.0483264]
[1645916602492,4.43,90.347,90.201,2.6183264]
[1645916602692,4.43,90.347,90.202,23.8427]
[1645916602893,4.43,90.347,90.203,2.58738085]
[1645916603092,4.43,90.347,90.203,2.08738085]
[1645916603295,110.0,90.345,90.202,23.8427]
[1645916603492,16.6283,90.31,90.21,16.6274]
[1645916603693,1.8770148,90.309,90.21,16.6274]
[1645916604293,1.68663169,90.328,90.211,2.29147954]
[1645916604493,1.38017334,90.339,90.23,16.6224]
[1645916604694,1.38017334,90.339,90.231,2.67715221]
[1645916605193,1.38017334,90.339,90.212,5.76675181]
[1645916605595,1.38017334,90.339,90.15,23.07854347]
[1645916605596,16.6225,90.33,90.213,2.74678921]
[1645916605797,15.89,90.32,90.194,22.8674]
[1645916605999,1.38853228,90.319,90.195,2.71408374]
[1645916606196,15.89,90.32,90.195,49.54380059]
[1645916606398,15.89,90.32,90.196,2.29253249]
[1645916606399,1.63869868,90.319,90.196,2.29253249]
[1645916606598,16.6265,90.31,90.22,16.6259]
[1645916606803,1.85677223,90.309,90.22,16.6259]
[1645916607099,1.7540778,90.309,90.22,16.6259]
[1645916607500,1.7540778,90.309,90.194,22.8674]
[1645916608307,16.6277,90.3,90.2,16.6289]
[1645916608504,0.53507273,90.299,90.194,22.8674]
[1645916608704,8.72507273,90.299,90.194,22.8674]
[1645916609103,8.72507273,90.299,90.158,42.68060656]
[1645916609304,8.72507273,90.299,90.17,16.6341]
[1645916609305,16.6321,90.29,90.17,16.6341]
[1645916609504,15.89,90.28,90.17,16.6341]
[1645916609805,1.11024168,90.279,90.17,16.6341]
[1645916610007,1.11024168,90.279,90.171,2.71319341]
[1645916610210,15.89,90.28,90.171,2.71319341]
[1645916610404,15.89,90.3,90.17,2.74678921]
[1645916610908,0.16640936,90.292,90.17,2.74678921]
[1645916611105,15.89,90.29,90.17,2.74678921]
[1645916611309,1.37493287,90.289,90.17,2.74678921]
[1645916611506,16.6338,90.28,90.18,16.6322]
[1645916611706,15.89,90.29,90.18,16.6322]
[1645916611907,1.51434115,90.309,90.181,5.66888425]
[1645916612108,1.51434115,90.309,90.183,2.39131332]
[1645916612509,1.51434115,90.309,90.2,16.6282]
[1645916614206,16.6298,90.3,90.2,16.6282]
[1645916614407,15.89,90.29,90.2,16.6282]
[1645916614607,1.5095958,90.289,90.2,16.6282]
[1645916616013,1.83995318,90.299,90.2,16.6282]
[1645916617937,16.632,90.29,90.191,24.8441]
[1645916618134,29.942,90.29,90.191,24.8441]
[1645916618543,1.75456157,90.289,90.191,24.8441]
[1645916619745,16.6336,90.28,90.191,24.8441]
[1645916619940,13.31,90.27,90.191,24.8441]
[1645916620138,110.0,90.259,90.158,47.7387]
[1645916620339,1.44113084,90.258,90.158,47.7387]
[1645916620544,1.44113084,90.258,90.16,16.6368]
[1645916621840,1.44113084,90.258,90.158,47.7387]
[1645916622041,110.0,90.249,90.158,47.7387]
[1645916622242,1.37117254,90.248,90.158,47.7387]
[1645916622441,1.51858556,90.259,90.158,47.7387]
[1645916622641,1.51858556,90.259,90.129,23.5307]
[1645916622844,23.90335668,90.256,90.129,23.5307]
[1645916623040,13.31,90.26,90.129,26.27748921]
[1645916623041,1.77182235,90.255,90.129,26.27748921]
[1645916623341,13.31,90.25,90.129,26.27748921]
[1645916623645,1.63088806,90.249,90.129,23.5307]
[1645916623840,1.63088806,90.249,90.13,110.0]
[1645916624042,13.31,90.25,90.151,2.661757]
[1645916624242,4.434,90.267,90.151,2.661757]
[1645916624440,1.55698595,90.268,90.131,23.57219843]
[1645916624642,144.86735668,90.267,90.13,13.31]
[1645916624844,1.6577591,90.266,90.13,13.31]
[1645916625044,110.0,90.265,90.13,13.31]
[1645916625255,1.64188666,90.264,90.13,16.41006452]
[1645916625450,13.31,90.25,90.14,16.6392]
[1645916625649,13.31,90.25,90.13,3.10006452]
[1645916625650,1.75705351,90.249,90.131,2.74678921]
[1645916625851,1.63516262,90.249,90.131,2.74678921]
[1645916626051,1.63516262,90.249,90.13,3.10006452]
[1645916627054,16.6403,90.24,90.13,16.6419]
[1645916627453,1.7455717,90.239,90.13,16.6419]
[1645916627852,1.7455717,90.239,90.129,23.5307]
[1645916627853,1.4461537,90.239,90.129,23.5307]
[1645916628054,1.4461537,90.239,90.13,2.59113581]
[1645916628253,1.4461537,90.239,90.129,23.5307]
[1645916628453,16.643,90.23,90.129,23.5307]
[1645916628653,16.643,90.23,90.11,55.4729]
[1645916628654,110.0,90.219,90.107,2.74678921]
[1645916628856,13.31,90.22,90.093,47.54]
[1645916628857,110.0,90.217,90.093,47.54]
[1645916629054,5.99342532,90.216,90.093,47.54]
[1645916629454,135.12568132,90.215,90.093,47.54]
[1645916629658,110.0,90.213,90.093,46.04]
[1645916629856,13.31,90.2,90.093,46.04]
[1645916630059,1.46557078,90.199,90.071,22.6339]
[1645916630262,5.90257078,90.199,90.071,22.6339]
[1645916630457,31.0282521,90.199,90.071,22.6339]
[1645916630658,1.78654532,90.198,90.071,22.6339]
[1645916630957,110.0,90.198,90.071,22.6339]
[1645916631157,1.39291702,90.197,90.05,2.58651026]
[1645916631362,16.6541,90.19,90.072,2.74678921]
[1645916631658,25.12568132,90.213,90.072,2.74678921]
[1645916631659,16.9112,90.217,90.072,2.74678921]
[1645916631860,1.66779646,90.216,90.074,110.0]
[1645916632059,1.66779646,90.216,90.075,3.04237729]
[1645916632264,1.66779646,90.216,90.081,110.0]
[1645916632460,16.6464,90.2,90.11,16.6464]
[1645916632659,1.64642069,90.199,90.11,16.6464]
[1645916632861,16.9112,90.217,90.083,2.7595657]
[1645916632862,1.75770819,90.216,90.111,2.74678921]
[1645916634362,1.80519432,90.209,90.111,2.74678921]
[1645916634564,16.6452,90.21,90.111,2.74678921]
[1645916635565,16.6452,90.21,90.12,16.6447]
[1645916635966,30.1793,90.22,90.111,2.74678921]
[1645916636173,16.8693,90.22,90.121,2.74678921]
[1645916636602,16.8693,90.22,90.122,2.57525204]
[1645916636801,1.61983438,90.239,90.122,2.57525204]
[1645916637097,16.6409,90.23,90.124,2.39075532]
[1645916637298,16.6409,90.23,90.123,25.60788921]
[1645916637299,1.61221935,90.229,90.123,25.60788921]
[1645916638002,13.31,90.24,90.123,25.60788921]
[1645916638202,16.6423,90.22,90.13,16.6413]
[1645916638401,1.39320778,90.219,90.13,16.6413]
[1645916638609,16.6423,90.22,90.123,25.60788921]
[1645916638804,1.48721701,90.239,90.123,25.60788921]
[1645916638805,1.48721701,90.239,90.123,33.84788921]
[1645916639005,1.48721701,90.239,90.124,2.79847425]
[1645916639203,1.48721701,90.239,90.124,112.79847425]
[1645916639404,1.48721701,90.239,90.125,2.74678921]
[1645916639605,1.61853796,90.258,90.126,110.0]
[1645916639805,1.61853796,90.258,90.13,13.31]
[1645916640006,19.75234799,90.253,90.13,13.31]
[1645916640204,13.31,90.25,90.13,13.31]
[1645916640408,13.31,90.25,90.131,2.74678921]
[1645916640409,1.47023917,90.249,90.131,2.74678921]
[1645916640609,16.6399,90.23,90.15,16.6392]
[1645916641809,16.6378,90.25,90.151,5.15835639]
[1645916642007,1.70596214,90.266,90.18,16.6338]
[1645916642208,1.66633483,90.279,90.18,24.3938]
[1645916642408,34.79440822,90.29,90.18,24.3938]
[1645916642607,1.3994923,90.289,90.181,2.74678921]
[1645916642809,21.15184029,90.289,90.181,2.74678921]
[1645916643007,1.57284836,90.288,90.181,2.74678921]
[1645916643207,1.57284836,90.288,90.19,16.6319]
[1645916643409,4.432,90.296,90.191,113.07751531]
[1645916643607,11.54971042,90.311,90.201,110.0]
[1645916643807,109.7,90.336,90.202,2.51303476]
[1645916644007,1.69323902,90.356,90.203,110.0]
[1645916644211,1.69323902,90.356,90.22,16.6255]
[1645916644408,1.69323902,90.356,90.23,13.31]
[1645916644707,4.43,90.355,90.23,13.31]
[1645916644908,1.69323902,90.356,90.23,13.31]
[1645916645312,1.69323902,90.356,90.231,2.74678921]
[1645916645609,55.4045,90.36,90.25,16.6198]
[1645916645610,1.66516182,90.349,90.25,16.6198]
[1645916646011,21.41750981,90.349,90.25,16.6198]
[1645916646412,1.66516182,90.349,90.25,16.6198]
[1645916647011,16.6214,90.34,90.241,23.0268]
[1645916647514,1.52296694,90.339,90.23,16.6231]
[1645916647714,6.08576317,90.347,90.23,16.6231]
[1645916648511,16.6242,90.33,90.23,16.6231]
[1645916648711,1.38357763,90.329,90.23,16.6231]
[1645916649315,1.38357763,90.329,90.222,23.8863]
[1645916649812,112.2,90.315,90.222,23.8863]
[1645916650012,109.7,90.315,90.222,23.8863]
[1645916650614,16.6242,90.33,90.223,2.4466184]
[1645916650817,1.533131,90.329,90.223,2.4466184]
[1645916651022,1.533131,90.329,90.223,5.19340761]
[1645916651216,1.533131,90.329,90.224,2.74678921]
[1645916652616,1.533131,90.329,90.23,16.622]
[1645916652818,1.533131,90.329,90.225,2.53744771]
[1645916653016,1.533131,90.329,90.222,23.8863]
[1645916653416,1.53208734,90.329,90.223,5.42853102]
[1645916653619,1.53208734,90.329,90.223,2.74678921]
[1645916653916,1.53208734,90.329,90.223,3.00316801]
[1645916654919,1.53208734,90.329,90.223,113.00316801]
[1645916655117,1.53208734,90.329,90.224,2.8114109]
[1645916656520,16.6252,90.32,90.224,2.8114109]
[1645916656717,16.6252,90.32,90.222,23.8863]
[1645916656920,1.49355675,90.319,90.222,23.8863]
[1645916657317,110.0,90.329,90.193,3.10014419]
[1645916657516,13.31,90.31,90.192,78.783]
[1645916657716,16.633,90.28,90.192,78.783]
[1645916657919,1.64458978,90.279,90.193,24.8282]
[1645916658718,16.633,90.28,90.193,24.8282]
[1645916659121,16.633,90.28,90.194,2.39326589]
[1645916659522,16.633,90.28,90.194,2.48480039]
[1645916661734,16.633,90.28,90.193,24.8282]
[1645916662136,1.50616667,90.279,90.193,24.8282]
[1645916664049,16.6333,90.27,90.193,24.8282]
[1645916664249,1.3725545,90.269,90.193,24.8282]
[1645916665551,1.3725545,90.269,90.172,2.48505971]
[1645916665552,16.6353,90.26,90.172,2.48505971]
[1645916665752,16.6353,90.26,90.15,16.6374]
[1645916665753,1.74489284,90.259,90.15,16.6374]
[1645916665951,55.4727,90.25,90.141,49.4859]
[1645916666152,1.64161376,90.249,90.141,49.4859]
[1645916666653,1.58163118,90.248,90.141,49.4859]
[1645916666855,1.60821374,90.247,90.141,49.4859]
[1645916667054,16.6418,90.23,90.141,49.4859]
[1645916667256,1.43491304,90.229,90.141,49.4859]
[1645916667453,5.65,90.23,90.141,49.4859]
[1645916667853,31.78812593,90.23,90.141,49.4859]
[1645916668056,16.6429,90.22,90.11,16.6447]
[1645916668255,29.9529,90.22,90.107,45.8884]
[1645916668555,1.49368362,90.218,90.107,45.8884]
[1645916669056,26.13812593,90.217,90.107,45.8884]
[1645916669355,6.21541245,90.216,90.107,45.8884]
[1645916669555,16.6478,90.2,90.107,45.8884]
[1645916669758,1.84334356,90.199,90.107,44.75052776]
[1645916670358,6.48,90.2,90.108,3.07253106]
[1645916670858,6.48,90.2,90.11,16.6461]
[1645916671261,6.48,90.2,90.111,3.12237596]
[1645916671561,6.48,90.2,90.11,16.6461]
[1645916672365,23.1253,90.2,90.11,16.6461]
[1645916672560,1.71984143,90.199,90.11,16.6461]
[1645916672960,6.48,90.2,90.11,16.6461]
[1645916673562,1.49326604,90.189,90.11,16.6461]
[1645916674162,1.64606818,90.198,90.107,44.75052776]
[1645916674560,1.80428311,90.179,90.107,44.75052776]
[1645916674762,9.51428311,90.179,90.107,44.75052776]
[1645916675063,7.71,90.179,90.107,44.75052776]
[1645916676064,16.6516,90.17,90.107,44.75052776]
[1645916676465,13.31,90.16,90.065,4.437]
[1645916676666,13.31,90.16,90.023,2.90305422]
[1645916676667,110.0,90.159,90.023,47.1589]
[1645916676865,1.56959537,90.158,90.023,47.1589]
[1645916677264,4.439,90.157,90.024,19.82891366]
[1645916677464,1.56959537,90.158,90.03,16.1613]
[1645916677668,4.439,90.157,90.031,3.11004394]
[1645916678064,1.6757106,90.156,90.031,3.11004394]
[1645916678265,1.6757106,90.156,90.023,51.5979]
[1645916678465,4.44,90.155,90.023,47.1589]
[1645916679466,4.44,90.155,90.03,16.6615]
[1645916679668,1.6757106,90.156,90.031,2.71801392]
[1645916679867,1.6757106,90.156,90.026,110.0]
[1645916680070,4.439,90.155,90.025,7.05228052]
[1645916680368,4.439,90.155,90.023,47.1589]
[1645916680566,4.439,90.155,90.03,16.6599]
[1645916680770,4.439,90.155,90.023,47.1589]
[1645916681369,1.43021003,90.155,90.024,117.44615575]
[1645916681668,1.43021003,90.155,90.05,16.6579]
[1645916681870,1.43021003,90.155,90.051,24.7795]
[1645916682769,1.5126392,90.156,90.052,2.80210192]
[1645916683071,1.5126392,90.156,90.054,2.95351314]
[1645916684971,111.5126392,90.156,90.054,2.95351314]
[1645916685172,110.0,90.154,90.053,24.7203]
[1645916685371,13.31,90.14,90.053,24.7203]
[1645916685573,16.6621,90.12,90.053,24.7203]
[1645916685773,110.0,90.109,90.02,300.0]
[1645916685971,4.356,90.046,90.02,300.0]
[1645916686372,1.94805634,90.039,90.02,300.0]
[1645916686773,58.07351095,90.038,90.02,300.0]
[1645916686973,1.59107387,90.037,90.02,300.0]
[1645916687575,0.006,90.046,90.021,15.0]
[1645916688576,0.006,90.046,90.02,300.0]
[1645916688975,0.006,90.046,89.859,0.98605481]
[1645916688976,32.40877392,90.045,89.859,0.98605481]
[1645916689177,166.42,90.03,89.96,16.8644]
[1645916689377,4.78,90.018,89.871,2.75399976]
[1645916689575,1.5468626,90.019,89.871,2.75399976]
[1645916689978,0.16230455,90.018,89.895,2.42415449]
[1645916690177,4.84995844,90.018,89.93,16.2138]
[1645916690376,1.5468626,90.019,89.93,16.2138]
[1645916690780,13.31,90.02,89.931,2.34214525]
[1645916690979,1.5433705,90.039,89.931,2.34214525]
[1645916691777,1.29224233,90.051,89.931,2.34214525]
[1645916691978,1.73050572,90.056,89.931,2.34214525]
[1645916692577,13.31,90.06,89.93,16.2138]
[1645916692578,13.31,90.06,89.933,2.45634298]
[1645916692778,13.31,90.06,89.94,16.6735]
[1645916692977,13.31,90.06,89.941,2.83756495]
[1645916693382,13.31,90.08,89.942,2.74678921]
[1645916693578,13.31,90.08,89.943,112.93182966]
[1645916693779,1.45454688,90.096,89.944,2.49518348]
[1645916693988,28.29269371,90.112,89.961,110.0]
[1645916694279,11.56094436,90.143,89.971,110.0]
[1645916694481,27.29251131,90.147,89.973,110.0]
[1645916694680,27.29251131,90.147,89.982,2.49787858]
[1645916694880,27.29251131,90.147,89.991,110.0]
[1645916695081,27.29251131,90.147,89.99,13.31]
[1645916695082,27.29251131,90.147,90.041,2.4492799]
[1645916695381,4.439,90.159,90.021,47.9865]
[1645916695581,31.73151131,90.159,90.022,2.51816944]
[1645916695782,11.55959,90.153,90.022,2.51816944]
[1645916695984,6.01548367,90.152,90.023,2.74678921]
[1645916696182,59.2579797,90.152,90.023,2.74678921]
[1645916696412,59.2579797,90.152,90.041,2.91182044]
[1645916696413,57.68249603,90.152,90.041,2.91182044]
[1645916696583,16.6587,90.16,90.041,9.68182044]
[1645916696782,53.15582936,90.151,90.041,9.68182044]
[1645916697184,25.86331805,90.151,90.041,9.68182044]
[1645916697383,16.6587,90.16,90.041,9.68182044]
[1645916697583,27.29251131,90.15,90.041,2.91182044]
[1645916697783,27.29251131,90.15,90.043,2.89542804]
[1645916697984,23.17231805,90.149,90.043,2.89542804]
[1645916698585,1.52861756,90.148,90.043,2.89542804]
[1645916698782,4.439,90.147,90.025,3.05968291]
[1645916698986,139.05711665,90.147,90.025,3.05968291]
[1645916699182,24.96282926,90.146,90.025,3.05968291]
[1645916699383,23.17231805,90.146,90.025,3.05968291]
[1645916699584,110.0,90.144,90.025,3.05968291]
[1645916699783,29.9726,90.13,90.025,3.05968291]
[1645916699984,1.48088918,90.129,90.025,3.05968291]
[1645916700189,24.65320723,90.129,90.025,3.05968291]
[1645916700385,1.67648084,90.128,90.025,3.05968291]
[1645916700583,4.44,90.127,90.025,3.05968291]
[1645916700783,24.53746145,90.127,90.025,3.05968291]
[1645916700984,16.6645,90.12,90.025,3.05968291]
[1645916701288,1.3827874,90.119,90.025,3.05968291]
[1645916701985,55.43840844,90.118,89.992,2.46701689]
[1645916702185,1.80297604,90.117,89.992,2.46701689]
[1645916702385,55.43840844,90.118,89.992,110.0]
[1645916702386,23.17231805,90.118,89.992,110.0]
[1645916702586,29.9745,90.12,89.993,3.02265016]
[1645916702787,32.26609039,90.116,89.993,3.02265016]
[1645916702986,32.26609039,90.116,89.994,110.0]
[1645916703187,1.50539054,90.115,89.995,2.5701375]
[1645916703387,13.31,90.11,89.995,2.5701375]
[1645916703586,4.78,90.088,89.981,2.74678921]
[1645916703790,13.31,90.08,89.972,2.77917294]
[1645916703986,115.82515376,90.079,89.932,2.28875852]
[1645916704186,1.61314121,90.078,89.932,2.28875852]
[1645916704387,4.444,90.077,89.932,2.28875852]
[1645916704587,56.35778825,90.077,89.932,2.28875852]
[1645916704790,1.72154643,90.076,89.932,2.28875852]
[1645916704989,5.80859788,90.075,89.932,2.28875852]
[1645916705193,28.98091593,90.075,89.932,2.28875852]
[1645916705389,1.56035552,90.073,89.932,2.28875852]
[1645916705589,29.9867,90.06,89.932,2.28875852]
[1645916705789,6.1822514,90.059,89.932,2.28875852]
[1645916706391,26.98038207,90.058,89.932,2.28875852]
[1645916706590,6.2062674,90.057,89.932,2.28875852]
[1645916706789,116.2062674,90.057,89.932,2.28875852]
[1645916706990,1.49102495,90.056,89.932,2.28875852]
[1645916707189,4.444,90.055,89.932,2.28875852]
[1645916707390,1.85744296,90.054,89.932,2.28875852]
[1645916707590,16.6814,90.03,89.932,2.28875852]
[1645916707790,13.31,90.02,89.932,2.28875852]
[1645916708593,26.98038207,90.019,89.932,2.28875852]
[1645916709693,111.66866635,90.018,89.895,2.89246432]
[1645916709891,4.78,89.998,89.87,2.19690507]
[1645916710093,13.31,89.99,89.87,2.19690507]
[1645916710297,1.36393424,89.989,89.87,2.19690507]
[1645916710695,4.11072345,89.989,89.87,2.19690507]
[1645916710897,26.48362215,89.988,89.87,2.19690507]
[1645916711096,1.70741941,89.987,89.87,2.19690507]
[1645916711298,6.15441941,89.987,89.87,2.19690507]
[1645916711518,16.6933,89.96,89.87,2.19690507]
[1645916711712,30.0033,89.96,89.87,2.19690507]
[1645916718725,1.58205884,89.959,89.87,2.19690507]
[1645916719024,30.0033,89.96,89.87,2.19690507]
[1645916719425,13.31,89.96,89.87,2.19690507]
[1645916719724,1.56820821,89.959,89.87,2.19690507]
[1645916719924,13.31,89.96,89.87,2.19690507]
[1645916720830,13.31,89.96,89.871,2.83981638]
[1645916722229,1.83604926,89.959,89.871,2.83981638]
[1645916722628,2.02335072,89.959,89.871,2.83981638]
[1645916723230,13.31,89.96,89.871,2.83981638]
[1645916723430,13.31,89.96,89.872,2.51366341]
[1645916724332,1.76203396,89.979,89.872,2.51366341]
[1645916724731,0.59978407,89.978,89.872,2.51366341]
[1645916725133,1.54643125,89.969,89.869,46.7709]
[1645916725333,1.3927573,89.959,89.869,46.7709]
[1645916725934,29.2274355,89.958,89.859,0.98605481]
[1645916726135,111.39807634,89.957,89.859,0.98605481]
[1645916726335,6.12446539,89.956,89.859,0.98605481]
[1645916726535,16.6942,89.95,89.859,0.98605481]
[1645916726733,1.73909066,89.939,89.859,0.98605481]
[1645916727536,16.6967,89.93,89.859,0.98605481]
[1645916727735,30.0067,89.93,89.859,0.98605481]
[1645916728537,0.0067,89.93,89.859,0.98605481]
[1645916728738,1.35312314,89.986,89.861,112.81465358]
[1645916729038,55.6004,90.05,89.871,110.0]
[1645916729346,11.57291671,90.027,89.893,5.0]
[1645916729539,3.902267,90.114,89.915,110.0]
[1645916729737,3.902267,90.114,89.971,110.0]
[1645916729937,3.902267,90.114,89.973,110.0]
[1645916730136,3.902267,90.114,89.975,110.0]
[1645916730335,3.902267,90.114,89.977,110.0]
[1645916730536,3.902267,90.114,89.981,110.0]
[1645916730745,13.31,90.12,89.983,110.0]
[1645916730936,13.31,90.12,89.98,13.31]
[1645916730937,4.441,90.119,89.985,110.0]
[1645916731137,4.441,90.119,90.002,2.96823985]
[1645916731535,4.441,90.119,89.991,112.36821996]
[1645916731738,29.975,90.12,89.992,2.89247728]
[1645916731940,13.31,90.12,89.992,2.89247728]
[1645916732140,13.31,90.12,90.01,16.664]
[1645916732338,13.31,90.12,90.012,2.51667456]
[1645916734041,1.66227412,90.135,90.02,16.6627]
[1645916734239,1.66227412,90.135,90.021,2.4237894]
[1645916734440,48.0959,90.136,90.021,2.4237894]
[1645916734644,47.5959,90.136,90.021,2.4237894]
[1645916735040,16.6627,90.14,90.02,13.31]
[1645916735241,16.6627,90.14,90.014,2.3537535]
[1645916735741,16.6627,90.14,90.02,13.31]
[1645916736547,16.6627,90.14,90.03,16.6609]
[1645916736747,16.6627,90.14,90.032,2.51019784]
[1645916737548,2.74678921,90.152,90.04,16.6589]
[1645916737748,2.74678921,90.152,90.042,2.53838209]
[1645916737951,48.6896,90.157,90.042,112.53838209]
[1645916738150,7.18578921,90.169,90.043,3.04085404]
[1645916738351,2.74678921,90.169,90.044,112.315725]
[1645916738649,112.2,90.17,90.045,2.39610185]
[1645916738950,7.18578921,90.169,90.05,13.31]
[1645916739149,112.2,90.17,90.05,13.31]
[1645916739751,2.74454688,90.179,90.05,13.31]
[1645916739752,2.74454688,90.179,90.071,2.61962946]
[1645916739950,47.1683,90.189,90.061,3.03406434]
[1645916740149,4.438,90.188,90.07,13.31]
[1645916740351,47.1683,90.189,90.072,2.57779875]
[1645916740649,2.74454688,90.187,90.072,2.57779875]
[1645916740848,16.6547,90.18,90.072,2.57779875]
[1645916741251,4.438,90.179,90.072,2.57779875]
[1645916741457,16.6547,90.18,90.072,2.57779875]
[1645916741650,4.438,90.179,90.072,2.57779875]
[1645916741850,16.6547,90.18,90.072,2.57779875]
[1645916742051,112.2,90.167,90.072,2.57779875]
[1645916744654,16.6582,90.16,90.072,2.57779875]
[1645916745253,5.86567774,90.159,90.072,2.57779875]
[1645916745854,2.74678921,90.158,90.072,2.57779875]
[1645916746058,3.00103598,90.274,90.07,13.31]
[1645916746256,7.49297459,90.35,90.07,13.31]
[1645916746257,3.00103598,90.293,90.104,110.0]
[1645916746466,16.7262,90.354,90.104,110.0]
[1645916746467,1.62778856,90.353,90.158,2.74678921]
[1645916746661,16.7262,90.354,90.171,110.0]
[1645916746862,16.7262,90.354,90.17,13.31]
[1645916746863,1.7353463,90.379,90.173,110.0]
[1645916747059,1.7353463,90.379,90.17,13.31]
[1645916747060,1.71147374,90.367,90.191,110.0]
[1645916747258,16.6262,90.38,90.202,2.27031161]
[1645916747462,1.80781971,90.391,90.203,4.43]
[1645916747858,1.80781971,90.391,90.204,2.74678921]